[Event "Titled Tuesday Blitz April 26 Early 2022"]
[White "Lazavik, Denis"]
[Black "Pinheiro, Iung Alicio de O."]
[WhiteFideId "13515110"]
[BlackFideId "2104350"]
[WhiteElo "2437"]
[BlackElo "2483"]
[Result "1-0"]
[Round "01"]
[TimeControl "180+1"]
[Date "2022.04.26"]
[WhiteClock "0:01:00"]
[BlackClock "0:00:08"]

1. d4 {[%clk 0:03:00]}  Nf6 {[%clk 0:02:58]} 2. c4 {[%clk 0:03:01]}  g6 {[%clk 0:02:58]} 3. Nc3 {[%clk 0:03:00]}  d5 {[%clk 0:02:58]} 4. Bf4 {[%clk 0:02:58]}  Bg7 {[%clk 0:02:58]} 5. e3 {[%clk 0:02:58]}  O-O {[%clk 0:02:57]} 6. cxd5 {[%clk 0:02:58]}  Nxd5 {[%clk 0:02:58]} 7. Nxd5 {[%clk 0:02:58]}  Qxd5 {[%clk 0:02:59]} 8. Bxc7 {[%clk 0:02:59]}  Na6 {[%clk 0:02:59]} 9. Bxa6 {[%clk 0:02:58]}  bxa6 {[%clk 0:03:00]} 10. Nf3 {[%clk 0:02:54]}  a5 {[%clk 0:02:36]} 11. O-O {[%clk 0:02:51]}  Ba6 {[%clk 0:02:36]} 12. Re1 {[%clk 0:02:48]}  Rfc8 {[%clk 0:02:36]} 13. Be5 {[%clk 0:02:45]}  f6 {[%clk 0:02:35]} 14. Bg3 {[%clk 0:02:44]}  Qb7 {[%clk 0:02:20]} 15. Qd2 {[%clk 0:02:22]}  a4 {[%clk 0:02:17]} 16. Rec1 {[%clk 0:01:58]}  Bc4 {[%clk 0:02:15]} 17. Ne1 {[%clk 0:01:52]}  Bd5 {[%clk 0:02:12]} 18. f3 {[%clk 0:01:51]}  Rxc1 {[%clk 0:02:06]} 19. Qxc1 {[%clk 0:01:50]}  Rc8 {[%clk 0:02:06]} 20. Qd2 {[%clk 0:01:49]}  Qc6 {[%clk 0:01:32]} 21. Nd3 {[%clk 0:01:41]}  Qc2 {[%clk 0:01:26]} 22. Qxc2 {[%clk 0:01:38]}  Rxc2 {[%clk 0:01:27]} 23. Nb4 {[%clk 0:01:39]}  Rxb2 {[%clk 0:01:04]} 24. Nxd5 {[%clk 0:01:38]}  Kf7 {[%clk 0:01:01]} 25. a3 {[%clk 0:01:20]}  e6 {[%clk 0:00:58]} 26. Nc3 {[%clk 0:01:19]}  Bh6 {[%clk 0:00:46]} 27. Bf2 {[%clk 0:01:16]}  Bf8 {[%clk 0:00:40]} 28. Nxa4 {[%clk 0:01:14]}  Rc2 {[%clk 0:00:36]} 29. Nc5 {[%clk 0:01:11]}  e5 {[%clk 0:00:35]} 30. a4 {[%clk 0:01:10]}  f5 {[%clk 0:00:29]} 31. Kf1 {[%clk 0:01:07]}  f4 {[%clk 0:00:28]} 32. Nd3 {[%clk 0:01:05]}  exd4 {[%clk 0:00:22]} 33. exd4 {[%clk 0:01:05]}  g5 {[%clk 0:00:22]} 34. a5 {[%clk 0:01:04]}  Bd6 {[%clk 0:00:20]} 35. a6 {[%clk 0:01:03]}  Ke6 {[%clk 0:00:19]} 36. d5+ {[%clk 0:01:02]}  Kxd5 {[%clk 0:00:18]} 37. Bxa7 {[%clk 0:01:03]}  Rd2 {[%clk 0:00:17]} 38. Bf2 {[%clk 0:01:00]}  Bb8 {[%clk 0:00:15]} 39. Nb4+ {[%clk 0:01:01]}  Kc4 {[%clk 0:00:14]} 40. Nc6 {[%clk 0:01:01]}  Bd6 {[%clk 0:00:08]} 41. a7 {[%clk 0:01:00]} 1-0


[Site "https://www.chess.com"]

[Event "Titled Tuesday Blitz April 26 Early 2022"]
[White "Leiva, Gianmarco"]
[Black "Minko, Dmitry"]
[WhiteFideId "3804399"]
[BlackFideId "24188468"]
[WhiteElo "2323"]
[BlackElo "1928"]
[Result "1-0"]
[Round "01"]
[TimeControl "180+1"]
[Date "2022.04.26"]
[WhiteClock "0:00:09"]
[BlackClock "0:00:02"]

1. e4 {[%clk 0:02:59]}  e5 {[%clk 0:02:59]} 2. Nf3 {[%clk 0:03:00]}  Nc6 {[%clk 0:02:59]} 3. Bc4 {[%clk 0:03:00]}  Bc5 {[%clk 0:02:58]} 4. O-O {[%clk 0:03:01]}  Nf6 {[%clk 0:02:57]} 5. d3 {[%clk 0:03:01]}  d6 {[%clk 0:02:57]} 6. c3 {[%clk 0:02:56]}  a6 {[%clk 0:02:57]} 7. Re1 {[%clk 0:02:55]}  h6 {[%clk 0:02:49]} 8. Bb3 {[%clk 0:02:45]}  Ba7 {[%clk 0:02:47]} 9. Nbd2 {[%clk 0:02:40]}  O-O {[%clk 0:02:47]} 10. h3 {[%clk 0:02:39]}  Re8 {[%clk 0:02:47]} 11. Nf1 {[%clk 0:02:39]}  Be6 {[%clk 0:02:47]} 12. Bc2 {[%clk 0:02:39]}  Ne7 {[%clk 0:02:45]} 13. Ng3 {[%clk 0:02:39]}  Ng6 {[%clk 0:02:45]} 14. d4 {[%clk 0:02:36]}  c6 {[%clk 0:02:09]} 15. Be3 {[%clk 0:02:31]}  Qc7 {[%clk 0:02:02]} 16. Qd2 {[%clk 0:01:09]}  Rad8 {[%clk 0:01:30]} 17. Rad1 {[%clk 0:01:09]}  d5 {[%clk 0:01:14]} 18. exd5 {[%clk 0:01:08]}  Nxd5 {[%clk 0:01:11]} 19. Bxg6 {[%clk 0:01:08]}  fxg6 {[%clk 0:00:44]} 20. Nxe5 {[%clk 0:01:07]}  Nxe3 {[%clk 0:00:43]} 21. fxe3 {[%clk 0:00:39]}  Bxa2 {[%clk 0:00:33]} 22. Qc2 {[%clk 0:00:37]}  Bf7 {[%clk 0:00:29]} 23. Kh1 {[%clk 0:00:21]}  Rxe5 {[%clk 0:00:27]} 24. dxe5 {[%clk 0:00:21]}  Rxd1 {[%clk 0:00:27]} 25. Qxd1 {[%clk 0:00:21]}  Qxe5 {[%clk 0:00:28]} 26. Qf3 {[%clk 0:00:18]}  g5 {[%clk 0:00:22]} 27. Rf1 {[%clk 0:00:13]}  Bg6 {[%clk 0:00:10]} 28. Qf8+ {[%clk 0:00:11]}  Kh7 {[%clk 0:00:08]} 29. Nf5 {[%clk 0:00:12]}  Bxf5 {[%clk 0:00:06]} 30. Qxf5+ {[%clk 0:00:12]}  Qxf5 {[%clk 0:00:06]} 31. Rxf5 {[%clk 0:00:12]}  Bxe3 {[%clk 0:00:07]} 32. Rf7 {[%clk 0:00:12]}  b6 {[%clk 0:00:06]} 33. Rc7 {[%clk 0:00:08]}  c5 {[%clk 0:00:05]} 34. Rc6 {[%clk 0:00:08]}  b5 {[%clk 0:00:04]} 35. Rxa6 {[%clk 0:00:09]}  Bc1 {[%clk 0:00:04]} 36. b3 {[%clk 0:00:09]}  b4 {[%clk 0:00:04]} 37. cxb4 {[%clk 0:00:08]}  cxb4 {[%clk 0:00:04]} 38. Rb6 {[%clk 0:00:08]}  Bd2 {[%clk 0:00:05]} 39. Rd6 {[%clk 0:00:07]}  Bc3 {[%clk 0:00:03]} 40. Rc6 {[%clk 0:00:08]}  g6 {[%clk 0:00:02]} 41. g4 {[%clk 0:00:08]}  h5 {[%clk 0:00:02]} 42. Kg2 {[%clk 0:00:09]}  Kg7 {[%clk 0:00:02]} 43. Kf3 {[%clk 0:00:09]} 1-0


[Site "https://www.chess.com"]

[Event "Titled Tuesday Blitz April 26 Early 2022"]
[White "Ljukin, Sergei"]
[Black "Kejzar, Petra"]
[WhiteFideId "14102200"]
[BlackFideId "14610213"]
[WhiteElo "2312"]
[BlackElo "2003"]
[Result "1-0"]
[Round "01"]
[TimeControl "180+1"]
[Date "2022.04.26"]
[WhiteClock "0:01:18"]
[BlackClock "0:00:03"]

1. e4 {[%clk 0:02:49]}  c5 {[%clk 0:02:58]} 2. Nf3 {[%clk 0:02:48]}  e6 {[%clk 0:02:59]} 3. d4 {[%clk 0:02:48]}  cxd4 {[%clk 0:03:00]} 4. Nxd4 {[%clk 0:02:49]}  Nf6 {[%clk 0:03:00]} 5. Nc3 {[%clk 0:02:49]}  d6 {[%clk 0:03:01]} 6. Bg5 {[%clk 0:02:48]}  Be7 {[%clk 0:03:00]} 7. f4 {[%clk 0:02:48]}  O-O {[%clk 0:02:58]} 8. Qf3 {[%clk 0:02:47]}  Nc6 {[%clk 0:02:51]} 9. O-O-O {[%clk 0:02:45]}  Nxd4 {[%clk 0:02:47]} 10. Rxd4 {[%clk 0:02:45]}  Qb6 {[%clk 0:02:47]} 11. Rd2 {[%clk 0:02:41]}  Bd7 {[%clk 0:02:26]} 12. e5 {[%clk 0:02:39]}  Bc6 {[%clk 0:02:21]} 13. Qd1 {[%clk 0:02:24]}  dxe5 {[%clk 0:02:18]} 14. fxe5 {[%clk 0:02:24]}  Nd5 {[%clk 0:01:21]} 15. Nxd5 {[%clk 0:02:22]}  Bxd5 {[%clk 0:01:22]} 16. Bxe7 {[%clk 0:02:21]}  Rfc8 {[%clk 0:01:19]} 17. Kb1 {[%clk 0:02:09]}  a5 {[%clk 0:01:18]} 18. Bd3 {[%clk 0:02:04]}  a4 {[%clk 0:01:14]} 19. a3 {[%clk 0:02:00]}  Rc7 {[%clk 0:00:54]} 20. Bd6 {[%clk 0:01:57]}  Rc6 {[%clk 0:00:53]} 21. Rf1 {[%clk 0:01:54]}  Rac8 {[%clk 0:00:52]} 22. Bxh7+ {[%clk 0:01:46]}  Kxh7 {[%clk 0:00:41]} 23. Qh5+ {[%clk 0:01:45]}  Kg8 {[%clk 0:00:41]} 24. Qxf7+ {[%clk 0:01:45]}  Kh7 {[%clk 0:00:41]} 25. Rd3 {[%clk 0:01:24]}  Bxg2 {[%clk 0:00:22]} 26. Rg3 {[%clk 0:01:23]}  Qxb2+ {[%clk 0:00:02]} 27. Kxb2 {[%clk 0:01:22]}  Rxc2+ {[%clk 0:00:03]} 28. Kb1 {[%clk 0:01:18]} 1-0


[Site "https://www.chess.com"]

[Event "Titled Tuesday Blitz April 26 Early 2022"]
[White "Lopez Del Alamo, Antonio"]
[Black "Yang, Kaiqi"]
[WhiteFideId "2227339"]
[BlackFideId "8604398"]
[WhiteElo "2082"]
[BlackElo "2373"]
[Result "1/2-1/2"]
[Round "01"]
[TimeControl "180+1"]
[Date "2022.04.26"]
[WhiteClock "0:00:08"]
[BlackClock "0:00:04"]

1. e4 {[%clk 0:03:00]}  d5 {[%clk 0:02:59]} 2. exd5 {[%clk 0:02:55]}  Qxd5 {[%clk 0:03:00]} 3. Nc3 {[%clk 0:02:55]}  Qd6 {[%clk 0:03:01]} 4. d4 {[%clk 0:02:53]}  c6 {[%clk 0:03:00]} 5. g3 {[%clk 0:02:51]}  Nf6 {[%clk 0:03:00]} 6. Bf4 {[%clk 0:02:50]}  Qd8 {[%clk 0:02:58]} 7. Bg2 {[%clk 0:02:49]}  Bg4 {[%clk 0:02:57]} 8. Nge2 {[%clk 0:02:48]}  e6 {[%clk 0:02:57]} 9. O-O {[%clk 0:02:46]}  Bd6 {[%clk 0:02:57]} 10. Qd2 {[%clk 0:02:44]}  O-O {[%clk 0:02:55]} 11. Rfe1 {[%clk 0:02:43]}  Na6 {[%clk 0:02:48]} 12. a3 {[%clk 0:02:39]}  Nc7 {[%clk 0:02:47]} 13. Bxd6 {[%clk 0:02:33]}  Qxd6 {[%clk 0:02:48]} 14. h3 {[%clk 0:02:29]}  Bf5 {[%clk 0:02:46]} 15. Rad1 {[%clk 0:02:27]}  Rad8 {[%clk 0:02:46]} 16. Nf4 {[%clk 0:02:11]}  h6 {[%clk 0:02:37]} 17. Na4 {[%clk 0:02:00]}  e5 {[%clk 0:02:30]} 18. Rxe5 {[%clk 0:01:48]}  Bh7 {[%clk 0:02:28]} 19. Nc5 {[%clk 0:01:41]}  Rb8 {[%clk 0:02:13]} 20. c3 {[%clk 0:01:38]}  b6 {[%clk 0:02:06]} 21. Ne4 {[%clk 0:01:38]}  Nxe4 {[%clk 0:02:04]} 22. Bxe4 {[%clk 0:01:39]}  Bxe4 {[%clk 0:02:02]} 23. Rxe4 {[%clk 0:01:39]}  Rbd8 {[%clk 0:02:01]} 24. Qe3 {[%clk 0:01:25]}  Rd7 {[%clk 0:01:58]} 25. Re1 {[%clk 0:01:24]}  a5 {[%clk 0:01:53]} 26. h4 {[%clk 0:01:23]}  a4 {[%clk 0:01:52]} 27. Nd3 {[%clk 0:01:13]}  Nd5 {[%clk 0:01:36]} 28. Qe2 {[%clk 0:01:10]}  Rdd8 {[%clk 0:01:25]} 29. Ne5 {[%clk 0:01:04]}  Nf6 {[%clk 0:01:22]} 30. Re3 {[%clk 0:01:01]}  Qd5 {[%clk 0:01:21]} 31. Qc4 {[%clk 0:00:58]}  Qxc4 {[%clk 0:01:20]} 32. Nxc4 {[%clk 0:00:58]}  Nd5 {[%clk 0:01:20]} 33. R3e2 {[%clk 0:00:57]}  b5 {[%clk 0:01:19]} 34. Ne5 {[%clk 0:00:57]}  Rd6 {[%clk 0:01:19]} 35. Nd3 {[%clk 0:00:57]}  Nb6 {[%clk 0:01:19]} 36. Re8 {[%clk 0:00:46]}  Nc4 {[%clk 0:01:17]} 37. R1e7 {[%clk 0:00:42]}  g6 {[%clk 0:01:11]} 38. Kf1 {[%clk 0:00:41]}  Rxe8 {[%clk 0:01:07]} 39. Rxe8+ {[%clk 0:00:40]}  Kg7 {[%clk 0:01:08]} 40. Ne5 {[%clk 0:00:40]}  Nxb2 {[%clk 0:01:04]} 41. Re7 {[%clk 0:00:40]}  Rf6 {[%clk 0:01:03]} 42. Rc7 {[%clk 0:00:40]}  Nd1 {[%clk 0:00:54]} 43. Nd7 {[%clk 0:00:37]}  Re6 {[%clk 0:00:48]} 44. Ne5 {[%clk 0:00:37]}  Nxc3 {[%clk 0:00:48]} 45. Rxf7+ {[%clk 0:00:37]}  Kg8 {[%clk 0:00:48]} 46. Rc7 {[%clk 0:00:35]}  Nb1 {[%clk 0:00:46]} 47. Nxc6 {[%clk 0:00:34]}  Nxa3 {[%clk 0:00:45]} 48. d5 {[%clk 0:00:34]}  Rd6 {[%clk 0:00:44]} 49. Rb7 {[%clk 0:00:33]}  Kf8 {[%clk 0:00:43]} 50. Rb8+ {[%clk 0:00:32]}  Kf7 {[%clk 0:00:41]} 51. Nb4 {[%clk 0:00:32]}  Rd7 {[%clk 0:00:32]} 52. Ke2 {[%clk 0:00:29]}  Ke7 {[%clk 0:00:33]} 53. Rb6 {[%clk 0:00:29]}  Rd6 {[%clk 0:00:29]} 54. Rb7+ {[%clk 0:00:28]}  Rd7 {[%clk 0:00:29]} 55. Rb6 {[%clk 0:00:27]}  Rd6 {[%clk 0:00:29]} 56. Rb7+ {[%clk 0:00:24]}  Kd8 {[%clk 0:00:30]} 57. Kd3 {[%clk 0:00:22]}  Kc8 {[%clk 0:00:30]} 58. Rg7 {[%clk 0:00:22]}  Nc4 {[%clk 0:00:29]} 59. Kd4 {[%clk 0:00:22]}  a3 {[%clk 0:00:28]} 60. Kc5 {[%clk 0:00:22]}  h5 {[%clk 0:00:25]} 61. Ra7 {[%clk 0:00:22]}  Nd2 {[%clk 0:00:19]} 62. Rxa3 {[%clk 0:00:20]}  Ne4+ {[%clk 0:00:18]} 63. Kd4 {[%clk 0:00:20]}  Nxf2 {[%clk 0:00:18]} 64. Ra7 {[%clk 0:00:18]}  Rd7 {[%clk 0:00:17]} 65. Ra6 {[%clk 0:00:18]}  Rg7 {[%clk 0:00:12]} 66. d6 {[%clk 0:00:17]}  g5 {[%clk 0:00:12]} 67. Kd5 {[%clk 0:00:17]}  gxh4 {[%clk 0:00:12]} 68. Kc6 {[%clk 0:00:17]}  Kb8 {[%clk 0:00:10]} 69. d7 {[%clk 0:00:16]}  Rg8 {[%clk 0:00:11]} 70. Nd5 {[%clk 0:00:15]}  Ne4 {[%clk 0:00:10]} 71. Nb6 {[%clk 0:00:15]}  Rg6+ {[%clk 0:00:07]} 72. Kd5 {[%clk 0:00:15]}  Kc7 {[%clk 0:00:07]} 73. Kxe4 {[%clk 0:00:14]}  hxg3 {[%clk 0:00:06]} 74. Ra7+ {[%clk 0:00:14]}  Kxb6 {[%clk 0:00:03]} 75. d8=Q+ {[%clk 0:00:13]}  Kxa7 {[%clk 0:00:03]} 76. Qd7+ {[%clk 0:00:13]}  Ka6 {[%clk 0:00:03]} 77. Qd1 {[%clk 0:00:10]}  Rg4+ {[%clk 0:00:02]} 78. Kf5 {[%clk 0:00:10]}  g2 {[%clk 0:00:03]} 79. Qg1 {[%clk 0:00:10]}  b4 {[%clk 0:00:02]} 80. Qa1+ {[%clk 0:00:09]}  Kb5 {[%clk 0:00:03]} 81. Qg1 {[%clk 0:00:09]}  b3 {[%clk 0:00:03]} 82. Qb1 {[%clk 0:00:08]}  Kb4 {[%clk 0:00:03]} 83. Qe1+ {[%clk 0:00:08]}  Ka3 {[%clk 0:00:04]} 84. Qa1+ {[%clk 0:00:08]}  Kb4 {[%clk 0:00:04]} 85. Qe1+ {[%clk 0:00:08]}  Kc4 {[%clk 0:00:03]} 86. Qe2+ {[%clk 0:00:08]}  Kc3 {[%clk 0:00:04]} 87. Qe1+ {[%clk 0:00:08]}  Kd3 {[%clk 0:00:04]} 88. Qd1+ {[%clk 0:00:08]}  Kc4 {[%clk 0:00:04]} 89. Qe2+ {[%clk 0:00:08]}  Kd4 {[%clk 0:00:04]} 90. Qd2+ {[%clk 0:00:08]}  Kc4 {[%clk 0:00:04]} 91. Qe2+ {[%clk 0:00:08]} 1/2-1/2


[Site "https://www.chess.com"]

[Event "Titled Tuesday Blitz April 26 Early 2022"]
[White "Lucas, Arthur"]
[Black "Demchenko, Anton"]
[WhiteFideId "26093073"]
[BlackFideId "4160258"]
[WhiteElo "2129"]
[BlackElo "2539"]
[Result "0-1"]
[Round "01"]
[TimeControl "180+1"]
[Date "2022.04.26"]
[WhiteClock "0:00:18"]
[BlackClock "0:01:18"]

1. e4 {[%clk 0:03:00]}  e5 {[%clk 0:02:58]} 2. Nf3 {[%clk 0:03:00]}  Nc6 {[%clk 0:02:58]} 3. Bc4 {[%clk 0:02:59]}  Nf6 {[%clk 0:02:58]} 4. d4 {[%clk 0:03:00]}  exd4 {[%clk 0:02:58]} 5. e5 {[%clk 0:03:01]}  Ne4 {[%clk 0:02:52]} 6. O-O {[%clk 0:02:58]}  d5 {[%clk 0:02:47]} 7. Bb5 {[%clk 0:02:50]}  Bg4 {[%clk 0:02:46]} 8. Qxd4 {[%clk 0:02:35]}  Bc5 {[%clk 0:02:24]} 9. Qd1 {[%clk 0:02:30]}  O-O {[%clk 0:02:23]} 10. Bxc6 {[%clk 0:02:28]}  bxc6 {[%clk 0:02:24]} 11. h3 {[%clk 0:02:28]}  Bh5 {[%clk 0:02:24]} 12. Bf4 {[%clk 0:02:07]}  f6 {[%clk 0:02:01]} 13. g4 {[%clk 0:01:12]}  fxe5 {[%clk 0:01:52]} 14. Bxe5 {[%clk 0:01:12]}  Bg6 {[%clk 0:01:38]} 15. Nd4 {[%clk 0:01:05]}  Qh4 {[%clk 0:01:33]} 16. f4 {[%clk 0:00:25]}  Qg3+ {[%clk 0:01:31]} 17. Kh1 {[%clk 0:00:23]}  Qxh3+ {[%clk 0:01:31]} 18. Kg1 {[%clk 0:00:22]}  Qg3+ {[%clk 0:01:30]} 19. Kh1 {[%clk 0:00:22]}  Bxd4 {[%clk 0:01:25]} 20. Qxd4 {[%clk 0:00:18]}  Qh3+ {[%clk 0:01:20]} 21. Kg1 {[%clk 0:00:18]}  Qxg4+ {[%clk 0:01:20]} 22. Kh1 {[%clk 0:00:18]}  Ng3+ {[%clk 0:01:19]} 23. Kg2 {[%clk 0:00:18]}  Ne2+ {[%clk 0:01:18]} 0-1


[Site "https://www.chess.com"]

[Event "Titled Tuesday Blitz April 26 Early 2022"]
[White "Makarian, Rudik"]
[Black "Sargissyan, Sargis"]
[WhiteFideId "44105681"]
[BlackFideId "13303210"]
[WhiteElo "2388"]
[BlackElo "2174"]
[Result "1-0"]
[Round "01"]
[TimeControl "180+1"]
[Date "2022.04.26"]
[WhiteClock "0:01:07"]
[BlackClock "0:00:08"]

1. b3 {[%clk 0:02:55]}  d5 {[%clk 0:02:57]} 2. Bb2 {[%clk 0:02:56]}  Nf6 {[%clk 0:02:47]} 3. e3 {[%clk 0:02:39]}  g6 {[%clk 0:02:40]} 4. Bxf6 {[%clk 0:02:38]}  exf6 {[%clk 0:02:40]} 5. Nf3 {[%clk 0:02:38]}  Bd6 {[%clk 0:02:29]} 6. d4 {[%clk 0:02:36]}  O-O {[%clk 0:02:27]} 7. Be2 {[%clk 0:02:23]}  Be6 {[%clk 0:02:17]} 8. O-O {[%clk 0:02:22]}  Nd7 {[%clk 0:02:17]} 9. c4 {[%clk 0:02:20]}  c6 {[%clk 0:02:17]} 10. Nc3 {[%clk 0:02:18]}  f5 {[%clk 0:02:16]} 11. cxd5 {[%clk 0:02:17]}  cxd5 {[%clk 0:02:16]} 12. a3 {[%clk 0:02:12]}  Nf6 {[%clk 0:02:14]} 13. b4 {[%clk 0:02:12]}  Ne4 {[%clk 0:02:08]} 14. Qb3 {[%clk 0:02:11]}  Rc8 {[%clk 0:02:05]} 15. Rac1 {[%clk 0:02:10]}  Nxc3 {[%clk 0:01:45]} 16. Rxc3 {[%clk 0:02:10]}  Rxc3 {[%clk 0:01:46]} 17. Qxc3 {[%clk 0:02:09]}  Qc7 {[%clk 0:01:46]} 18. Qxc7 {[%clk 0:02:03]}  Bxc7 {[%clk 0:01:47]} 19. Rc1 {[%clk 0:02:03]}  Bd6 {[%clk 0:01:47]} 20. g3 {[%clk 0:01:58]}  a5 {[%clk 0:01:10]} 21. bxa5 {[%clk 0:01:56]}  Ra8 {[%clk 0:01:10]} 22. Rb1 {[%clk 0:01:38]}  Rxa5 {[%clk 0:01:07]} 23. Rxb7 {[%clk 0:01:37]}  Rxa3 {[%clk 0:01:06]} 24. Bb5 {[%clk 0:01:33]}  h6 {[%clk 0:00:55]} 25. Bd7 {[%clk 0:01:30]}  Ra6 {[%clk 0:00:37]} 26. h4 {[%clk 0:01:26]}  Kf8 {[%clk 0:00:29]} 27. Kg2 {[%clk 0:01:25]}  Ra8 {[%clk 0:00:24]} 28. Bxe6 {[%clk 0:01:24]}  fxe6 {[%clk 0:00:24]} 29. Rh7 {[%clk 0:01:25]}  Kg8 {[%clk 0:00:22]} 30. Rd7 {[%clk 0:01:22]}  Ra6 {[%clk 0:00:21]} 31. Ne1 {[%clk 0:01:17]}  Kf8 {[%clk 0:00:19]} 32. Nd3 {[%clk 0:01:17]}  Rc6 {[%clk 0:00:19]} 33. Kf3 {[%clk 0:01:16]}  g5 {[%clk 0:00:15]} 34. hxg5 {[%clk 0:01:10]}  hxg5 {[%clk 0:00:16]} 35. g4 {[%clk 0:01:11]}  fxg4+ {[%clk 0:00:12]} 36. Kxg4 {[%clk 0:01:12]}  Be7 {[%clk 0:00:13]} 37. Ne5 {[%clk 0:01:11]}  Rc2 {[%clk 0:00:13]} 38. Ng6+ {[%clk 0:01:10]}  Kf7 {[%clk 0:00:12]} 39. Nxe7 {[%clk 0:01:10]}  Ke8 {[%clk 0:00:11]} 40. Ra7 {[%clk 0:01:09]}  Rxf2 {[%clk 0:00:11]} 41. Nc6 {[%clk 0:01:09]}  Kf8 {[%clk 0:00:09]} 42. Ne5 {[%clk 0:01:08]}  Re2 {[%clk 0:00:07]} 43. Kxg5 {[%clk 0:01:07]}  Rxe3 {[%clk 0:00:08]} 44. Kf6 {[%clk 0:01:07]}  Kg8 {[%clk 0:00:08]} 1-0


[Site "https://www.chess.com"]

[Event "Titled Tuesday Blitz April 26 Early 2022"]
[White "Maksimenko, Viktor"]
[Black "Oye-Stromberg, Alexander"]
[WhiteFideId "13710478"]
[BlackFideId "1525999"]
[WhiteElo "2269"]
[BlackElo "1934"]
[Result "0-1"]
[Round "01"]
[TimeControl "180+1"]
[Date "2022.04.26"]
[WhiteClock "0:00:41"]
[BlackClock "0:00:43"]

1. d4 {[%clk 0:03:00]}  Nf6 {[%clk 0:02:59]} 2. c4 {[%clk 0:03:00]}  e6 {[%clk 0:02:59]} 3. Nf3 {[%clk 0:02:59]}  d5 {[%clk 0:02:59]} 4. g3 {[%clk 0:02:59]}  Be7 {[%clk 0:02:59]} 5. Bg2 {[%clk 0:03:00]}  O-O {[%clk 0:02:59]} 6. Nc3 {[%clk 0:03:00]}  dxc4 {[%clk 0:02:59]} 7. Ne5 {[%clk 0:03:00]}  Nc6 {[%clk 0:02:58]} 8. Bxc6 {[%clk 0:03:00]}  bxc6 {[%clk 0:02:59]} 9. Nxc6 {[%clk 0:03:01]}  Qe8 {[%clk 0:02:59]} 10. Nxe7+ {[%clk 0:03:02]}  Qxe7 {[%clk 0:03:00]} 11. Qa4 {[%clk 0:03:03]}  e5 {[%clk 0:02:56]} 12. dxe5 {[%clk 0:02:26]}  Qxe5 {[%clk 0:02:57]} 13. Qxc4 {[%clk 0:02:24]}  Bh3 {[%clk 0:02:50]} 14. Bf4 {[%clk 0:02:23]}  Qf5 {[%clk 0:02:38]} 15. O-O-O {[%clk 0:02:10]}  Rfe8 {[%clk 0:01:58]} 16. f3 {[%clk 0:02:07]}  Qa5 {[%clk 0:01:42]} 17. e4 {[%clk 0:01:51]}  Bg2 {[%clk 0:01:35]} 18. Rhf1 {[%clk 0:01:37]}  Bxf1 {[%clk 0:01:34]} 19. Rxf1 {[%clk 0:01:38]}  c6 {[%clk 0:01:21]} 20. g4 {[%clk 0:01:34]}  Nd7 {[%clk 0:01:14]} 21. Rd1 {[%clk 0:01:33]}  Ne5 {[%clk 0:01:13]} 22. Bxe5 {[%clk 0:01:31]}  Qxe5 {[%clk 0:01:12]} 23. Rd2 {[%clk 0:01:29]}  Qf4 {[%clk 0:01:10]} 24. Qxc6 {[%clk 0:01:13]}  Rad8 {[%clk 0:01:05]} 25. Nd5 {[%clk 0:01:10]}  Qxf3 {[%clk 0:00:57]} 26. e5 {[%clk 0:00:47]}  Rc8 {[%clk 0:00:50]} 27. Ne7+ {[%clk 0:00:46]}  Kf8 {[%clk 0:00:48]} 28. Qxc8 {[%clk 0:00:43]}  Rxc8+ {[%clk 0:00:48]} 29. Nxc8 {[%clk 0:00:44]}  Qf1+ {[%clk 0:00:44]} 30. Rd1 {[%clk 0:00:39]}  Qc4+ {[%clk 0:00:44]} 31. Kd2 {[%clk 0:00:39]}  Qxc8 {[%clk 0:00:44]} 32. Ke3 {[%clk 0:00:40]}  Qxg4 {[%clk 0:00:44]} 33. Rd8+ {[%clk 0:00:41]}  Ke7 {[%clk 0:00:44]} 34. Ra8 {[%clk 0:00:41]}  Ke6 {[%clk 0:00:43]} 35. Rxa7 {[%clk 0:00:41]}  Qg1+ {[%clk 0:00:43]} 0-1


[Site "https://www.chess.com"]

[Event "Titled Tuesday Blitz April 26 Early 2022"]
[White "Martic, Ivan"]
[Black "De Arruda, Leandro Formes"]
[WhiteFideId "929301"]
[BlackFideId "22722009"]
[WhiteElo "2317"]
[BlackElo "1852"]
[Result "1-0"]
[Round "01"]
[TimeControl "180+1"]
[Date "2022.04.26"]
[WhiteClock "0:00:19"]
[BlackClock "0:00:02"]

1. d4 {[%clk 0:02:59]}  d5 {[%clk 0:02:55]} 2. Nf3 {[%clk 0:02:58]}  Nf6 {[%clk 0:02:55]} 3. Bf4 {[%clk 0:02:58]}  e6 {[%clk 0:02:52]} 4. e3 {[%clk 0:02:57]}  Bd6 {[%clk 0:02:51]} 5. Bd3 {[%clk 0:02:55]}  Bxf4 {[%clk 0:02:50]} 6. exf4 {[%clk 0:02:56]}  Qd6 {[%clk 0:02:50]} 7. Qc1 {[%clk 0:02:49]}  b6 {[%clk 0:02:48]} 8. O-O {[%clk 0:02:46]}  Ba6 {[%clk 0:02:47]} 9. Bxa6 {[%clk 0:02:45]}  Nxa6 {[%clk 0:02:48]} 10. c3 {[%clk 0:02:44]}  O-O {[%clk 0:02:48]} 11. Nbd2 {[%clk 0:02:42]}  c5 {[%clk 0:02:48]} 12. g3 {[%clk 0:02:37]}  cxd4 {[%clk 0:02:43]} 13. Nxd4 {[%clk 0:02:38]}  Rac8 {[%clk 0:02:38]} 14. Qd1 {[%clk 0:02:38]}  Nc5 {[%clk 0:02:37]} 15. N2f3 {[%clk 0:02:35]}  Nfe4 {[%clk 0:02:28]} 16. Qe2 {[%clk 0:02:31]}  Rce8 {[%clk 0:02:16]} 17. a4 {[%clk 0:02:28]}  f6 {[%clk 0:02:13]} 18. a5 {[%clk 0:02:26]}  e5 {[%clk 0:02:03]} 19. fxe5 {[%clk 0:02:21]}  fxe5 {[%clk 0:02:04]} 20. Nb5 {[%clk 0:02:21]}  Qe7 {[%clk 0:02:03]} 21. axb6 {[%clk 0:02:17]}  axb6 {[%clk 0:02:04]} 22. Ra7 {[%clk 0:02:16]}  Qf6 {[%clk 0:01:59]} 23. Nh4 {[%clk 0:02:04]}  Ng5 {[%clk 0:01:52]} 24. Nc7 {[%clk 0:01:54]}  Rd8 {[%clk 0:01:34]} 25. Kg2 {[%clk 0:01:46]}  e4 {[%clk 0:01:28]} 26. Qg4 {[%clk 0:01:31]}  Nd3 {[%clk 0:01:19]} 27. f4 {[%clk 0:01:14]}  exf3+ {[%clk 0:01:05]} 28. Kh1 {[%clk 0:01:12]}  Ne5 {[%clk 0:00:55]} 29. Qd4 {[%clk 0:01:04]}  f2 {[%clk 0:00:37]} 30. Nxd5 {[%clk 0:01:01]}  Qe6 {[%clk 0:00:32]} 31. c4 {[%clk 0:00:55]}  Nh3 {[%clk 0:00:19]} 32. Kg2 {[%clk 0:00:40]}  b5 {[%clk 0:00:08]} 33. b3 {[%clk 0:00:38]}  bxc4 {[%clk 0:00:08]} 34. bxc4 {[%clk 0:00:39]}  Rd6 {[%clk 0:00:07]} 35. Qe4 {[%clk 0:00:31]}  Rdd8 {[%clk 0:00:03]} 36. Re7 {[%clk 0:00:28]}  Qd6 {[%clk 0:00:01]} 37. Qxe5 {[%clk 0:00:27]}  Qxe5 {[%clk 0:00:02]} 38. Rxe5 {[%clk 0:00:28]}  Rc8 {[%clk 0:00:02]} 39. Kxh3 {[%clk 0:00:27]}  Rxc4 {[%clk 0:00:01]} 40. Kg2 {[%clk 0:00:27]}  Rc2 {[%clk 0:00:01]} 41. Re3 {[%clk 0:00:23]}  Rd2 {[%clk 0:00:01]} 42. Ne7+ {[%clk 0:00:22]}  Kf7 {[%clk 0:00:01]} 43. Nef5 {[%clk 0:00:20]}  g5 {[%clk 0:00:02]} 44. Re7+ {[%clk 0:00:18]}  Kf6 {[%clk 0:00:02]} 45. Re3 {[%clk 0:00:18]}  gxh4 {[%clk 0:00:01]} 46. Nxh4 {[%clk 0:00:19]}  Rg8 {[%clk 0:00:02]} 47. Rf3+ {[%clk 0:00:18]}  Kg7 {[%clk 0:00:02]} 48. R1xf2 {[%clk 0:00:19]}  Rxf2+ {[%clk 0:00:02]} 49. Rxf2 {[%clk 0:00:20]}  Kh6 {[%clk 0:00:03]} 50. Rf3 {[%clk 0:00:19]}  Kh5 {[%clk 0:00:03]} 51. Rf5+ {[%clk 0:00:18]}  Kh6 {[%clk 0:00:03]} 52. Rf2 {[%clk 0:00:19]}  Kh5 {[%clk 0:00:04]} 53. Re2 {[%clk 0:00:19]}  Kg5 {[%clk 0:00:04]} 54. h3 {[%clk 0:00:20]}  h5 {[%clk 0:00:04]} 55. Nf3+ {[%clk 0:00:20]}  Kh6 {[%clk 0:00:04]} 56. Re6+ {[%clk 0:00:20]}  Kh7 {[%clk 0:00:05]} 57. Re7+ {[%clk 0:00:20]}  Kh6 {[%clk 0:00:05]} 58. Nd4 {[%clk 0:00:20]}  Rd8 {[%clk 0:00:04]} 59. Re6+ {[%clk 0:00:20]}  Kg5 {[%clk 0:00:04]} 60. Re4 {[%clk 0:00:21]}  Kf6 {[%clk 0:00:03]} 61. Kf3 {[%clk 0:00:20]}  Re8 {[%clk 0:00:02]} 62. Rxe8 {[%clk 0:00:19]} 1-0


[Site "https://www.chess.com"]